[Event "Titled Tuesday Blitz January 31 Early 2023"]
[White "Lopez Idarraga, Daniel Eduardo"]
[Black "Vaglio Munoz, Jaime"]
[WhiteFideId "4405501"]
[BlackFideId "6500145"]
[WhiteElo "2009"]
[BlackElo "2174"]
[Result "1-0"]
[Round "05"]
[TimeControl "180+2"]
[Date "2023.01.31"]
[WhiteClock "0:00:12"]
[BlackClock "0:00:03"]

1. Nf3 {[%clk 0:03:00]}  c6 {[%clk 0:02:55]} 2. b3 {[%clk 0:03:00]}  d5 {[%clk 0:02:51]} 3. Bb2 {[%clk 0:03:01]}  Bf5 {[%clk 0:02:51]} 4. d3 {[%clk 0:03:00]}  e6 {[%clk 0:02:51]} 5. Nbd2 {[%clk 0:03:01]}  Nf6 {[%clk 0:02:51]} 6. e4 {[%clk 0:02:59]}  Bg4 {[%clk 0:02:49]} 7. h3 {[%clk 0:02:58]}  Bh5 {[%clk 0:02:49]} 8. g4 {[%clk 0:02:58]}  Bg6 {[%clk 0:02:48]} 9. Qe2 {[%clk 0:02:58]}  Bb4 {[%clk 0:02:46]} 10. a3 {[%clk 0:02:55]}  Bc5 {[%clk 0:02:43]} 11. Ne5 {[%clk 0:02:51]}  dxe4 {[%clk 0:02:40]} 12. dxe4 {[%clk 0:02:50]}  Nbd7 {[%clk 0:02:38]} 13. Nxg6 {[%clk 0:02:30]}  hxg6 {[%clk 0:02:37]} 14. Bg2 {[%clk 0:02:31]}  Qb6 {[%clk 0:02:35]} 15. Nc4 {[%clk 0:02:29]}  Qc7 {[%clk 0:02:35]} 16. O-O-O {[%clk 0:02:27]}  O-O-O {[%clk 0:02:33]} 17. Bf3 {[%clk 0:02:27]}  b5 {[%clk 0:02:32]} 18. Ne3 {[%clk 0:02:22]}  Ne5 {[%clk 0:02:31]} 19. Bg2 {[%clk 0:02:19]}  Qb6 {[%clk 0:02:29]} 20. Kb1 {[%clk 0:02:17]}  Bd4 {[%clk 0:02:21]} 21. Bxd4 {[%clk 0:02:06]}  Rxd4 {[%clk 0:02:19]} 22. f4 {[%clk 0:02:07]}  Ned7 {[%clk 0:02:18]} 23. Bf3 {[%clk 0:02:05]}  Qc5 {[%clk 0:02:14]} 24. Rxd4 {[%clk 0:02:02]}  Qxd4 {[%clk 0:02:14]} 25. Rd1 {[%clk 0:02:01]}  Qc5 {[%clk 0:02:12]} 26. g5 {[%clk 0:01:51]}  Ne8 {[%clk 0:02:10]} 27. Bg4 {[%clk 0:01:48]}  Kc7 {[%clk 0:01:51]} 28. b4 {[%clk 0:01:40]}  Qe7 {[%clk 0:01:41]} 29. c4 {[%clk 0:01:39]}  a6 {[%clk 0:01:41]} 30. c5 {[%clk 0:01:38]}  f6 {[%clk 0:01:33]} 31. gxf6 {[%clk 0:01:34]}  gxf6 {[%clk 0:01:34]} 32. Qa2 {[%clk 0:01:31]}  f5 {[%clk 0:01:26]} 33. Bf3 {[%clk 0:01:30]}  Rxh3 {[%clk 0:01:25]} 34. Qg2 {[%clk 0:01:28]}  Qh4 {[%clk 0:01:19]} 35. exf5 {[%clk 0:01:25]}  gxf5 {[%clk 0:01:18]} 36. Bxc6 {[%clk 0:01:25]}  Nef6 {[%clk 0:01:04]} 37. Bxd7 {[%clk 0:01:23]}  Rxe3 {[%clk 0:01:01]} 38. Bxe6 {[%clk 0:01:15]}  Rxe6 {[%clk 0:00:40]} 39. Qg7+ {[%clk 0:01:14]}  Kc8 {[%clk 0:00:38]} 40. Qf8+ {[%clk 0:01:09]}  Ne8 {[%clk 0:00:36]} 41. Qxf5 {[%clk 0:01:01]}  Qf6 {[%clk 0:00:29]} 42. Qd5 {[%clk 0:00:58]}  Qe7 {[%clk 0:00:23]} 43. Qa8+ {[%clk 0:00:55]}  Kc7 {[%clk 0:00:21]} 44. Qa7+ {[%clk 0:00:56]}  Kc8 {[%clk 0:00:21]} 45. Qa8+ {[%clk 0:00:49]}  Kc7 {[%clk 0:00:21]} 46. f5 {[%clk 0:00:44]}  Re1 {[%clk 0:00:16]} 47. Qa7+ {[%clk 0:00:43]}  Kc8 {[%clk 0:00:16]} 48. Qxa6+ {[%clk 0:00:43]}  Kb8 {[%clk 0:00:15]} 49. Qxb5+ {[%clk 0:00:43]}  Ka8 {[%clk 0:00:13]} 50. Rxe1 {[%clk 0:00:37]}  Qxe1+ {[%clk 0:00:13]} 51. Kb2 {[%clk 0:00:37]}  Qe5+ {[%clk 0:00:12]} 52. Kb3 {[%clk 0:00:37]}  Nc7 {[%clk 0:00:12]} 53. Qc6+ {[%clk 0:00:36]}  Kb8 {[%clk 0:00:12]} 54. f6 {[%clk 0:00:34]}  Nd5 {[%clk 0:00:12]} 55. f7 {[%clk 0:00:22]}  Qc3+ {[%clk 0:00:12]} 56. Ka4 {[%clk 0:00:22]}  Qc2+ {[%clk 0:00:06]} 57. Ka5 {[%clk 0:00:20]}  Qf5 {[%clk 0:00:05]} 58. Qxd5 {[%clk 0:00:15]}  Qxd5 {[%clk 0:00:03]} 59. f8=Q+ {[%clk 0:00:15]}  Ka7 {[%clk 0:00:02]} 60. Qe7+ {[%clk 0:00:15]}  Ka8 {[%clk 0:00:02]} 61. Qe8+ {[%clk 0:00:14]}  Ka7 {[%clk 0:00:03]} 62. Qb5 {[%clk 0:00:12]} 1-0


[Site "https://www.chess.com"]

[Event "Titled Tuesday Blitz January 31 Early 2023"]
[White "Clawitter, Craig"]
[Black "Papayan, Oleg"]
[WhiteFideId "2023105"]
[BlackFideId "4193911"]
[WhiteElo "2050"]
[BlackElo "2253"]
[Result "0-1"]
[Round "05"]
[TimeControl "180+2"]
[Date "2023.01.31"]
[WhiteClock "0:00:08"]
[BlackClock "0:00:35"]

1. e4 {[%clk 0:02:57]}  d5 {[%clk 0:02:55]} 2. exd5 {[%clk 0:02:56]}  Qxd5 {[%clk 0:02:56]} 3. Nc3 {[%clk 0:02:57]}  Qd8 {[%clk 0:02:56]} 4. d4 {[%clk 0:02:57]}  c6 {[%clk 0:02:54]} 5. Nf3 {[%clk 0:02:55]}  Bf5 {[%clk 0:02:54]} 6. Bc4 {[%clk 0:02:52]}  e6 {[%clk 0:02:54]} 7. Bg5 {[%clk 0:02:22]}  Be7 {[%clk 0:02:50]} 8. Qd2 {[%clk 0:02:22]}  h6 {[%clk 0:02:40]} 9. Bxe7 {[%clk 0:02:20]}  Nxe7 {[%clk 0:02:41]} 10. O-O-O {[%clk 0:02:20]}  Nd7 {[%clk 0:02:39]} 11. h3 {[%clk 0:02:19]}  b5 {[%clk 0:02:36]} 12. Bd3 {[%clk 0:02:15]}  Nb6 {[%clk 0:02:35]} 13. Bxf5 {[%clk 0:01:49]}  Nxf5 {[%clk 0:02:36]} 14. g4 {[%clk 0:01:50]}  Nc4 {[%clk 0:02:25]} 15. Qf4 {[%clk 0:01:47]}  Ne7 {[%clk 0:02:20]} 16. Ne5 {[%clk 0:01:40]}  Nxe5 {[%clk 0:01:55]} 17. dxe5 {[%clk 0:01:37]}  Qc7 {[%clk 0:01:54]} 18. Ne4 {[%clk 0:01:33]}  Ng6 {[%clk 0:01:53]} 19. Qg3 {[%clk 0:01:11]}  Qxe5 {[%clk 0:01:45]} 20. Nd6+ {[%clk 0:01:03]}  Ke7 {[%clk 0:01:46]} 21. Qa3 {[%clk 0:00:33]}  Qf4+ {[%clk 0:01:20]} 22. Kb1 {[%clk 0:00:32]}  b4 {[%clk 0:01:20]} 23. Qa6 {[%clk 0:00:25]}  Rhd8 {[%clk 0:01:21]} 24. Qxc6 {[%clk 0:00:18]}  Kf8 {[%clk 0:01:12]} 25. Rhe1 {[%clk 0:00:13]}  Kg8 {[%clk 0:00:52]} 26. Qc7 {[%clk 0:00:13]}  a5 {[%clk 0:00:46]} 27. Re4 {[%clk 0:00:13]}  Qxe4 {[%clk 0:00:40]} 28. Qxf7+ {[%clk 0:00:13]}  Kh7 {[%clk 0:00:38]} 29. b3 {[%clk 0:00:07]}  Rxd6 {[%clk 0:00:34]} 30. Rxd6 {[%clk 0:00:07]}  Qe1+ {[%clk 0:00:34]} 31. Kb2 {[%clk 0:00:08]}  Qe5+ {[%clk 0:00:35]} 0-1


[Site "https://www.chess.com"]

[Event "Titled Tuesday Blitz January 31 Early 2023"]
[White "Jiganchine, Roman"]
[Black "Hartikainen, Jarmo"]
[WhiteFideId "2603667"]
[BlackFideId "503134"]
[WhiteElo "2205"]
[BlackElo "2108"]
[Result "1-0"]
[Round "05"]
[TimeControl "180+2"]
[Date "2023.01.31"]
[WhiteClock "0:00:23"]
[BlackClock "0:00:13"]

1. e4 {[%clk 0:03:00]}  c5 {[%clk 0:02:59]} 2. Nf3 {[%clk 0:02:59]}  e6 {[%clk 0:02:59]} 3. g3 {[%clk 0:02:59]}  Nc6 {[%clk 0:02:57]} 4. Bg2 {[%clk 0:02:59]}  Nf6 {[%clk 0:02:57]} 5. d3 {[%clk 0:02:58]}  d5 {[%clk 0:02:51]} 6. Qe2 {[%clk 0:02:53]}  Be7 {[%clk 0:02:48]} 7. O-O {[%clk 0:02:53]}  O-O {[%clk 0:02:47]} 8. e5 {[%clk 0:02:33]}  Nd7 {[%clk 0:02:38]} 9. Re1 {[%clk 0:02:33]}  Qc7 {[%clk 0:02:34]} 10. Bf4 {[%clk 0:02:33]}  b6 {[%clk 0:02:22]} 11. h4 {[%clk 0:02:32]}  Bb7 {[%clk 0:02:16]} 12. Nbd2 {[%clk 0:02:30]}  a5 {[%clk 0:02:01]} 13. c3 {[%clk 0:02:28]}  a4 {[%clk 0:02:00]} 14. a3 {[%clk 0:02:28]}  b5 {[%clk 0:01:56]} 15. Nf1 {[%clk 0:02:27]}  b4 {[%clk 0:01:52]} 16. N1h2 {[%clk 0:02:20]}  bxa3 {[%clk 0:01:33]} 17. bxa3 {[%clk 0:02:20]}  d4 {[%clk 0:01:27]} 18. c4 {[%clk 0:02:15]}  Na5 {[%clk 0:01:25]} 19. Ng4 {[%clk 0:01:53]}  Kh8 {[%clk 0:01:22]} 20. h5 {[%clk 0:01:44]}  Nb3 {[%clk 0:01:18]} 21. h6 {[%clk 0:01:38]}  g6 {[%clk 0:01:14]} 22. Rab1 {[%clk 0:01:31]}  Bc6 {[%clk 0:01:14]} 23. Bg5 {[%clk 0:01:19]}  Qd8 {[%clk 0:01:08]} 24. Bxe7 {[%clk 0:00:47]}  Qxe7 {[%clk 0:01:07]} 25. Nd2 {[%clk 0:00:39]}  Nxd2 {[%clk 0:00:57]} 26. Qxd2 {[%clk 0:00:40]}  Rab8 {[%clk 0:00:57]} 27. Bxc6 {[%clk 0:00:37]}  f5 {[%clk 0:00:40]} 28. exf6 {[%clk 0:00:34]}  Nxf6 {[%clk 0:00:39]} 29. Nxf6 {[%clk 0:00:35]}  Qxf6 {[%clk 0:00:37]} 30. Be4 {[%clk 0:00:32]}  Rfe8 {[%clk 0:00:27]} 31. f3 {[%clk 0:00:30]}  Qf8 {[%clk 0:00:27]} 32. Kg2 {[%clk 0:00:29]}  Rb3 {[%clk 0:00:26]} 33. Rxb3 {[%clk 0:00:26]}  axb3 {[%clk 0:00:27]} 34. Rb1 {[%clk 0:00:27]}  Rb8 {[%clk 0:00:26]} 35. Rb2 {[%clk 0:00:25]}  Kg8 {[%clk 0:00:21]} 36. Qg5 {[%clk 0:00:24]}  Qd6 {[%clk 0:00:13]} 37. Qf6 {[%clk 0:00:23]} 1-0


[Site "https://www.chess.com"]

[Event "Titled Tuesday Blitz January 31 Early 2023"]
[White "Bongo Akanga Ndjila, Barthelemy"]
[Black "Ruiz Aguilar, Pablo Alexander"]
[WhiteFideId "10609431"]
[BlackFideId "4401352"]
[WhiteElo "1824"]
[BlackElo "2161"]
[Result "1-0"]
[Round "05"]
[TimeControl "180+2"]
[Date "2023.01.31"]
[WhiteClock "0:00:19"]
[BlackClock "0:00:01"]

1. d4 {[%clk 0:02:44]}  d5 {[%clk 0:02:59]} 2. c4 {[%clk 0:02:43]}  c6 {[%clk 0:02:57]} 3. Qc2 {[%clk 0:02:42]}  Nf6 {[%clk 0:02:57]} 4. Nf3 {[%clk 0:02:42]}  g6 {[%clk 0:02:55]} 5. e3 {[%clk 0:02:42]}  Bf5 {[%clk 0:02:55]} 6. Bd3 {[%clk 0:02:42]}  Bxd3 {[%clk 0:02:51]} 7. Qxd3 {[%clk 0:02:43]}  Bg7 {[%clk 0:02:51]} 8. Nbd2 {[%clk 0:02:42]}  O-O {[%clk 0:02:50]} 9. O-O {[%clk 0:02:40]}  Na6 {[%clk 0:02:50]} 10. a3 {[%clk 0:02:39]}  Nc7 {[%clk 0:02:50]} 11. b4 {[%clk 0:02:39]}  dxc4 {[%clk 0:02:50]} 12. Nxc4 {[%clk 0:02:38]}  Nb5 {[%clk 0:02:37]} 13. a4 {[%clk 0:02:34]}  Nd6 {[%clk 0:02:37]} 14. Nce5 {[%clk 0:02:32]}  Nd5 {[%clk 0:02:34]} 15. b5 {[%clk 0:02:27]}  cxb5 {[%clk 0:02:32]} 16. axb5 {[%clk 0:02:27]}  a6 {[%clk 0:01:55]} 17. bxa6 {[%clk 0:02:24]}  Nb4 {[%clk 0:01:53]} 18. Qb3 {[%clk 0:02:19]}  Rxa6 {[%clk 0:01:48]} 19. Ba3 {[%clk 0:02:14]}  Nc6 {[%clk 0:01:34]} 20. Bxd6 {[%clk 0:02:12]}  Qxd6 {[%clk 0:01:33]} 21. Qxb7 {[%clk 0:02:12]}  Nxe5 {[%clk 0:01:29]} 22. Rxa6 {[%clk 0:02:09]}  Nxf3+ {[%clk 0:01:29]} 23. gxf3 {[%clk 0:02:09]}  Qd8 {[%clk 0:01:19]} 24. Rfa1 {[%clk 0:02:07]}  e6 {[%clk 0:01:19]} 25. Ra8 {[%clk 0:02:05]}  Qg5+ {[%clk 0:01:19]} 26. Kf1 {[%clk 0:02:04]}  Qf5 {[%clk 0:01:18]} 27. Rxf8+ {[%clk 0:01:57]}  Bxf8 {[%clk 0:01:17]} 28. Ra8 {[%clk 0:01:56]}  Kg7 {[%clk 0:01:16]} 29. Qb8 {[%clk 0:01:41]}  Be7 {[%clk 0:01:08]} 30. Qe8 {[%clk 0:01:31]}  Bd6 {[%clk 0:01:03]} 31. f4 {[%clk 0:01:21]}  Kh6 {[%clk 0:00:51]} 32. Qd8 {[%clk 0:01:14]}  Qh3+ {[%clk 0:00:36]} 33. Ke1 {[%clk 0:01:12]}  Bb4+ {[%clk 0:00:33]} 34. Ke2 {[%clk 0:01:09]}  Qg4+ {[%clk 0:00:32]} 35. Kd3 {[%clk 0:01:09]}  Qd1+ {[%clk 0:00:28]} 36. Kc4 {[%clk 0:01:08]}  Qd2 {[%clk 0:00:23]} 37. Rc8 {[%clk 0:00:50]}  Ba3 {[%clk 0:00:20]} 38. Kb3 {[%clk 0:00:45]}  Qb2+ {[%clk 0:00:19]} 39. Kc4 {[%clk 0:00:45]}  Qc2+ {[%clk 0:00:18]} 40. Kb5 {[%clk 0:00:44]}  Qb3+ {[%clk 0:00:18]} 41. Kc6 {[%clk 0:00:43]}  Qa4+ {[%clk 0:00:15]} 42. Kb7 {[%clk 0:00:40]}  Qb5+ {[%clk 0:00:11]} 43. Qb6 {[%clk 0:00:40]}  Qd7+ {[%clk 0:00:11]} 44. Rc7 {[%clk 0:00:40]}  Qd5+ {[%clk 0:00:11]} 45. Ka7 {[%clk 0:00:38]}  Bd6 {[%clk 0:00:09]} 46. Rxf7 {[%clk 0:00:36]}  Qa2+ {[%clk 0:00:08]} 47. Kb7 {[%clk 0:00:35]}  Qd5+ {[%clk 0:00:08]} 48. Kc8 {[%clk 0:00:33]}  Qa8+ {[%clk 0:00:07]} 49. Kd7 {[%clk 0:00:25]}  Bb8 {[%clk 0:00:04]} 50. Kxe6 {[%clk 0:00:20]}  Qe4+ {[%clk 0:00:01]} 51. Kd7 {[%clk 0:00:20]}  Qd5+ {[%clk 0:00:01]} 52. Ke8 {[%clk 0:00:19]} 1-0


[Site "https://www.chess.com"]

[Event "Titled Tuesday Blitz January 31 Early 2023"]
[White "Player, Edmund C"]
[Black "Ricaurte Lopez, Juan Carlos"]
[WhiteFideId "406520"]
[BlackFideId "3600327"]
[WhiteElo "2204"]
[BlackElo "2226"]
[Result "1-0"]
[Round "05"]
[TimeControl "180+2"]
[Date "2023.01.31"]
[WhiteClock "0:00:22"]
[BlackClock "0:00:14"]

1. e4 {[%clk 0:03:00]}  e5 {[%clk 0:02:58]} 2. Nc3 {[%clk 0:02:59]}  Nf6 {[%clk 0:02:56]} 3. Bc4 {[%clk 0:02:58]}  c6 {[%clk 0:02:54]} 4. f4 {[%clk 0:02:53]}  d5 {[%clk 0:02:53]} 5. exd5 {[%clk 0:02:50]}  cxd5 {[%clk 0:02:51]} 6. Bb5+ {[%clk 0:02:50]}  Nc6 {[%clk 0:02:47]} 7. fxe5 {[%clk 0:02:50]}  Ne4 {[%clk 0:02:44]} 8. Nf3 {[%clk 0:02:47]}  Bg4 {[%clk 0:02:39]} 9. O-O {[%clk 0:02:22]}  Nxc3 {[%clk 0:02:22]} 10. Bxc6+ {[%clk 0:02:21]}  bxc6 {[%clk 0:02:23]} 11. bxc3 {[%clk 0:02:19]}  Bc5+ {[%clk 0:01:51]} 12. d4 {[%clk 0:02:17]}  Bb6 {[%clk 0:01:49]} 13. Ba3 {[%clk 0:02:11]}  Qd7 {[%clk 0:01:40]} 14. Qd2 {[%clk 0:02:01]}  O-O-O {[%clk 0:01:31]} 15. Rab1 {[%clk 0:01:58]}  f6 {[%clk 0:01:29]} 16. Bd6 {[%clk 0:01:42]}  Rhe8 {[%clk 0:01:15]} 17. Qd3 {[%clk 0:01:30]}  Kb7 {[%clk 0:01:12]} 18. a4 {[%clk 0:01:26]}  Bxf3 {[%clk 0:01:08]} 19. Rxf3 {[%clk 0:01:23]}  fxe5 {[%clk 0:01:08]} 20. Bxe5 {[%clk 0:01:06]}  Rxe5 {[%clk 0:01:05]} 21. Rxb6+ {[%clk 0:00:57]}  axb6 {[%clk 0:00:57]} 22. dxe5 {[%clk 0:00:58]}  c5 {[%clk 0:00:51]} 23. Qxh7 {[%clk 0:00:54]}  Re8 {[%clk 0:00:46]} 24. Rf5 {[%clk 0:00:34]}  Re7 {[%clk 0:00:41]} 25. Qg6 {[%clk 0:00:31]}  Qxa4 {[%clk 0:00:39]} 26. Rf7 {[%clk 0:00:27]}  Qd7 {[%clk 0:00:35]} 27. e6 {[%clk 0:00:24]}  Qd6 {[%clk 0:00:15]} 28. Rxe7+ {[%clk 0:00:22]}  Qxe7 {[%clk 0:00:14]} 29. Qf7 {[%clk 0:00:22]} 1-0


[Site "https://www.chess.com"]

[Event "Titled Tuesday Blitz January 31 Early 2023"]
[White "Levine, David"]
[Black "Schut, Han"]
[WhiteFideId "2011611"]
[BlackFideId "1005561"]
[WhiteElo "2040"]
[BlackElo "2101"]
[Result "0-1"]
[Round "05"]
[TimeControl "180+2"]
[Date "2023.01.31"]
[WhiteClock "0:01:33"]
[BlackClock "0:01:28"]

1. d4 {[%clk 0:02:59]}  Nf6 {[%clk 0:02:58]} 2. c4 {[%clk 0:02:59]}  g6 {[%clk 0:02:58]} 3. g3 {[%clk 0:03:00]}  Bg7 {[%clk 0:02:57]} 4. Bg2 {[%clk 0:03:00]}  d5 {[%clk 0:02:57]} 5. cxd5 {[%clk 0:02:59]}  Nxd5 {[%clk 0:02:58]} 6. Nf3 {[%clk 0:02:56]}  O-O {[%clk 0:02:56]} 7. O-O {[%clk 0:02:53]}  c5 {[%clk 0:02:56]} 8. e3 {[%clk 0:02:53]}  cxd4 {[%clk 0:02:56]} 9. Nxd4 {[%clk 0:02:51]}  Nc6 {[%clk 0:02:56]} 10. Nxc6 {[%clk 0:02:49]}  bxc6 {[%clk 0:02:57]} 11. Bd2 {[%clk 0:02:49]}  Bxb2 {[%clk 0:02:54]} 12. Bxd5 {[%clk 0:02:44]}  cxd5 {[%clk 0:02:49]} 13. Nc3 {[%clk 0:02:43]}  Bxa1 {[%clk 0:02:48]} 14. Qxa1 {[%clk 0:02:43]}  Bh3 {[%clk 0:02:45]} 15. Rd1 {[%clk 0:02:36]}  Qd7 {[%clk 0:02:39]} 16. Ne2 {[%clk 0:02:25]}  Qf5 {[%clk 0:02:23]} 17. Nf4 {[%clk 0:02:22]}  Bg4 {[%clk 0:02:15]} 18. Rc1 {[%clk 0:02:10]}  Bf3 {[%clk 0:02:14]} 19. Bb4 {[%clk 0:02:03]}  Rfe8 {[%clk 0:01:56]} 20. Rc5 {[%clk 0:01:48]}  g5 {[%clk 0:01:46]} 21. Bc3 {[%clk 0:01:36]}  gxf4 {[%clk 0:01:40]} 22. Bh8 {[%clk 0:01:35]}  f6 {[%clk 0:01:39]} 23. Rc7 {[%clk 0:01:34]}  Qh3 {[%clk 0:01:28]} 24. Bxf6 {[%clk 0:01:33]}  Qg2# {[%clk 0:01:28]} 0-1


[Site "https://www.chess.com"]

[Event "Titled Tuesday Blitz January 31 Early 2023"]
[White "Ter-Sahakyan, Samvel"]
[Black "Chigaev, Maksim"]
[WhiteFideId "13302531"]
[BlackFideId "4108116"]
[WhiteElo "2617"]
[BlackElo "2628"]
[Result "1/2-1/2"]
[Round "06"]
[TimeControl "180+2"]
[Date "2023.01.31"]
[WhiteClock "0:00:05"]
[BlackClock "0:00:05"]

1. d4 {[%clk 0:02:59]}  Nf6 {[%clk 0:03:00]} 2. c4 {[%clk 0:02:59]}  g6 {[%clk 0:03:00]} 3. Nc3 {[%clk 0:03:00]}  Bg7 {[%clk 0:03:01]} 4. e4 {[%clk 0:03:00]}  O-O {[%clk 0:03:02]} 5. Be2 {[%clk 0:02:59]}  d6 {[%clk 0:03:02]} 6. Be3 {[%clk 0:02:59]}  c6 {[%clk 0:02:57]} 7. g4 {[%clk 0:02:49]}  Qa5 {[%clk 0:02:57]} 8. Kf1 {[%clk 0:02:21]}  c5 {[%clk 0:02:43]} 9. d5 {[%clk 0:02:16]}  b5 {[%clk 0:02:43]} 10. g5 {[%clk 0:02:09]}  Nfd7 {[%clk 0:02:40]} 11. Nxb5 {[%clk 0:02:08]}  Bxb2 {[%clk 0:02:36]} 12. Rb1 {[%clk 0:02:07]}  Bg7 {[%clk 0:02:37]} 13. Rb3 {[%clk 0:01:46]}  a6 {[%clk 0:02:30]} 14. Bd2 {[%clk 0:01:26]}  Qd8 {[%clk 0:02:26]} 15. Nc3 {[%clk 0:01:25]}  Nb6 {[%clk 0:02:23]} 16. h4 {[%clk 0:01:22]}  e6 {[%clk 0:02:22]} 17. h5 {[%clk 0:01:21]}  exd5 {[%clk 0:02:22]} 18. Nxd5 {[%clk 0:01:20]}  Nxd5 {[%clk 0:02:20]} 19. exd5 {[%clk 0:01:15]}  Bf5 {[%clk 0:02:11]} 20. Bg4 {[%clk 0:01:05]}  Qd7 {[%clk 0:01:48]} 21. Rg3 {[%clk 0:00:44]}  Be5 {[%clk 0:01:23]} 22. Rg2 {[%clk 0:00:43]}  Ra7 {[%clk 0:01:13]} 23. Qf3 {[%clk 0:00:41]}  Bxg4 {[%clk 0:01:10]} 24. Rxg4 {[%clk 0:00:41]}  Rb7 {[%clk 0:01:00]} 25. Kg2 {[%clk 0:00:41]}  Qf5 {[%clk 0:00:46]} 26. Qxf5 {[%clk 0:00:38]}  gxf5 {[%clk 0:00:46]} 27. Rgh4 {[%clk 0:00:39]}  Nd7 {[%clk 0:00:45]} 28. Nf3 {[%clk 0:00:37]}  Rb2 {[%clk 0:00:38]} 29. a4 {[%clk 0:00:32]}  Re8 {[%clk 0:00:15]} 30. Re1 {[%clk 0:00:31]}  Rbb8 {[%clk 0:00:14]} 31. a5 {[%clk 0:00:30]}  Bg7 {[%clk 0:00:10]} 32. Rxe8+ {[%clk 0:00:27]}  Rxe8 {[%clk 0:00:11]} 33. Rf4 {[%clk 0:00:25]}  Re4 {[%clk 0:00:11]} 34. Nh4 {[%clk 0:00:10]}  Ne5 {[%clk 0:00:04]} 35. Nxf5 {[%clk 0:00:09]}  Rxf4 {[%clk 0:00:04]} 36. Bxf4 {[%clk 0:00:10]}  Nxc4 {[%clk 0:00:05]} 37. Bxd6 {[%clk 0:00:04]}  Nxa5 {[%clk 0:00:02]} 38. Bxc5 {[%clk 0:00:04]}  Nb7 {[%clk 0:00:03]} 39. Bb4 {[%clk 0:00:05]}  a5 {[%clk 0:00:03]} 40. Ba3 {[%clk 0:00:05]}  Bc3 {[%clk 0:00:03]} 41. d6 {[%clk 0:00:05]}  Bb4 {[%clk 0:00:04]} 42. Bxb4 {[%clk 0:00:03]}  axb4 {[%clk 0:00:05]} 43. d7 {[%clk 0:00:04]}  b3 {[%clk 0:00:05]} 44. Nd6 {[%clk 0:00:02]}  Nd8 {[%clk 0:00:04]} 45. Nc4 {[%clk 0:00:02]}  Kf8 {[%clk 0:00:05]} 46. Kf3 {[%clk 0:00:03]}  Ke7 {[%clk 0:00:05]} 47. Ke3 {[%clk 0:00:02]}  Kxd7 {[%clk 0:00:06]} 48. Kd3 {[%clk 0:00:03]}  Ke6 {[%clk 0:00:06]} 49. Kc3 {[%clk 0:00:03]}  Kf5 {[%clk 0:00:06]} 50. Kxb3 {[%clk 0:00:03]}  Kxg5 {[%clk 0:00:07]} 51. Kc3 {[%clk 0:00:03]}  Kxh5 {[%clk 0:00:08]} 52. Kd4 {[%clk 0:00:02]}  Kg5 {[%clk 0:00:08]} 53. Ke4 {[%clk 0:00:02]}  Ne6 {[%clk 0:00:07]} 54. Nd6 {[%clk 0:00:02]}  f6 {[%clk 0:00:06]} 55. Kf3 {[%clk 0:00:03]}  h5 {[%clk 0:00:06]} 56. Ne4+ {[%clk 0:00:02]}  Kg6 {[%clk 0:00:06]} 57. Nd6 {[%clk 0:00:03]}  Nd4+ {[%clk 0:00:04]} 58. Kg2 {[%clk 0:00:03]}  Nf5 {[%clk 0:00:04]} 59. Ne4 {[%clk 0:00:04]}  Nh6 {[%clk 0:00:04]} 60. Nd6 {[%clk 0:00:04]}  Nf7 {[%clk 0:00:04]} 61. Ne4 {[%clk 0:00:04]}  Ng5 {[%clk 0:00:05]} 62. Nc3 {[%clk 0:00:04]}  Kf5 {[%clk 0:00:05]} 63. Nb5 {[%clk 0:00:04]}  Kf4 {[%clk 0:00:04]} 64. Nc7 {[%clk 0:00:04]}  h4 {[%clk 0:00:04]} 65. Nd5+ {[%clk 0:00:04]}  Ke5 {[%clk 0:00:04]} 66. Ne3 {[%clk 0:00:05]}  Ke4 {[%clk 0:00:04]} 67. Ng4 {[%clk 0:00:05]}  f5 {[%clk 0:00:05]} 68. Nf6+ {[%clk 0:00:05]}  Ke5 {[%clk 0:00:04]} 69. Nd7+ {[%clk 0:00:05]}  Kf4 {[%clk 0:00:04]} 70. Nc5 {[%clk 0:00:06]}  Kg4 {[%clk 0:00:03]} 71. Nd3 {[%clk 0:00:05]}  h3+ {[%clk 0:00:04]} 72. Kh2 {[%clk 0:00:05]}  Nf3+ {[%clk 0:00:04]} 73. Kh1 {[%clk 0:00:06]}  Kh4 {[%clk 0:00:04]} 74. Nf4 {[%clk 0:00:05]}  Ne5 {[%clk 0:00:04]} 75. Kh2 {[%clk 0:00:04]}  Ng4+ {[%clk 0:00:04]} 76. Kg1 {[%clk 0:00:04]}  Nf6 {[%clk 0:00:04]} 77. Kh2 {[%clk 0:00:04]}  Ng4+ {[%clk 0:00:05]} 78. Kg1 {[%clk 0:00:04]}  Ne5 {[%clk 0:00:05]} 79. Kh2 {[%clk 0:00:04]}  Nf3+ {[%clk 0:00:05]} 80. Kh1 {[%clk 0:00:04]}  Kg4 {[%clk 0:00:05]} 81. Nxh3 {[%clk 0:00:05]}  Kxh3 {[%clk 0:00:05]} 1/2-1/2


[Site "https://www.chess.com"]